[Event "*** Titled Tuesday 3|2 Blitz"]
[Site "Chess.com"]
[Date "2017.03.07"]
[Round "3"]
[White "ChristopherYoo"]
[Black "Wolverine_master"]
[Result "1/2-1/2"]
[WhiteElo "2147"]
[BlackElo "1937"]
[TimeControl "180+2"]
[EndTime "13:46:07 PST"]
[Termination "Game drawn by agreement"]

1. e4 {[%clk 0:03:02]} 1... d5 {[%clk 0:02:54.6]} 2. exd5 {[%clk 0:03:02.5]}
2... Qxd5 {[%clk 0:02:56.5]} 3. Nc3 {[%clk 0:03:04.1]} 3... Qd6 {[%clk
0:02:57.5]} 4. d4 {[%clk 0:03:04.1]} 4... Nf6 {[%clk 0:02:58.8]} 5. Nf3 {[%clk
0:03:05.4]} 5... a6 {[%clk 0:03:00.2]} 6. Be2 {[%clk 0:03:03.1]} 6... Nc6 {[%clk
0:03:01.5]} 7. Be3 {[%clk 0:02:53.5]} 7... Bg4 {[%clk 0:03:01.7]} 8. h3 {[%clk
0:02:54.5]} 8... Bh5 {[%clk 0:03:02.2]} 9. d5 {[%clk 0:02:43.7]} 9... Nb4 {[%clk
0:02:36.2]} 10. Bc4 {[%clk 0:02:05.1]} 10... O-O-O {[%clk 0:02:33.8]} 11. O-O
{[%clk 0:01:44.2]} 11... Nbxd5 {[%clk 0:02:23.6]} 12. Nxd5 {[%clk 0:01:43.2]}
12... Nxd5 {[%clk 0:02:25]} 13. Qe2 {[%clk 0:01:26.3]} 13... Nxe3 {[%clk
0:02:16.9]} 14. Qxe3 {[%clk 0:01:26.5]} 14... Qb6 {[%clk 0:01:21.7]} 15. Qf4
{[%clk 0:00:31.6]} 15... e6 {[%clk 0:01:13.8]} 16. b3 {[%clk 0:00:29.1]} 16...
Bd6 {[%clk 0:01:12.4]} 17. Qe4 {[%clk 0:00:29]} 17... Bg6 {[%clk 0:01:00.1]} 18.
Qe2 {[%clk 0:00:29.6]} 18... Rhe8 {[%clk 0:00:45]} 19. a3 {[%clk 0:00:26.4]}
19... Bh5 {[%clk 0:00:33.4]} 20. b4 {[%clk 0:00:21.9]} 20... Qc6 {[%clk
0:00:23.8]} 21. b5 {[%clk 0:00:17.7]} 21... Bxf3 {[%clk 0:00:21.8]} 22. bxc6
{[%clk 0:00:16.2]} 22... Bxe2 {[%clk 0:00:22.4]} 23. cxb7+ {[%clk 0:00:17.2]}
23... Kxb7 {[%clk 0:00:23.6]} 24. Bxe2 {[%clk 0:00:17.7]} 24... Ka7 {[%clk
0:00:19.7]} 25. a4 {[%clk 0:00:17.7]} 25... Rb8 {[%clk 0:00:20.5]} 26. Rab1
{[%clk 0:00:17]} 26... Rxb1 {[%clk 0:00:20.4]} 27. Rxb1 {[%clk 0:00:17.9]} 27...
a5 {[%clk 0:00:21.5]} 28. Bb5 {[%clk 0:00:17.9]} 28... Rb8 {[%clk 0:00:21.6]}
29. Rb3 {[%clk 0:00:18.9]} 29... Bc5 {[%clk 0:00:18.6]} 30. Kf1 {[%clk
0:00:18.6]} 30... Rd8 {[%clk 0:00:19.5]} 31. Ke2 {[%clk 0:00:19]} 31... Rd4
{[%clk 0:00:19.2]} 32. Bc6 {[%clk 0:00:19.1]} 32... Bb6 {[%clk 0:00:17.4]} 33.
Bb5 {[%clk 0:00:18.1]} 33... Re4+ {[%clk 0:00:17.6]} 34. Kf1 {[%clk 0:00:17.5]}
34... Rf4 {[%clk 0:00:17.5]} 35. f3 {[%clk 0:00:17.3]} 35... Rd4 {[%clk
0:00:18.6]} 36. Ke2 {[%clk 0:00:17.7]} 36... Rd5 {[%clk 0:00:18.2]} 37. Rc3
{[%clk 0:00:16.7]} 37... Re5+ {[%clk 0:00:18.5]} 38. Kf1 {[%clk 0:00:16.6]}
38... Kb7 {[%clk 0:00:15.8]} 39. Bc6+ {[%clk 0:00:16.5]} 39... Ka7 {[%clk
0:00:17]} 40. Rd3 {[%clk 0:00:16.2]} 40... Bc5 {[%clk 0:00:16.9]} 41. Rd8 {[%clk
0:00:12.6]} 41... Kb6 {[%clk 0:00:17.9]} 42. Be4 {[%clk 0:00:12.3]} 42... f5
{[%clk 0:00:16.9]} 43. Rb8+ {[%clk 0:00:11.3]} 43... Ka7 {[%clk 0:00:15]} 44.
Ra8+ {[%clk 0:00:10.6]} 44... Kb6 {[%clk 0:00:16]} 45. Rb8+ {[%clk 0:00:10.7]}
45... Ka6 {[%clk 0:00:16.9]} 46. Ra8+ {[%clk 0:00:11.3]} 46... Ba7 {[%clk
0:00:17.5]} 47. Bd3+ {[%clk 0:00:11.9]} 47... Kb7 {[%clk 0:00:18.1]} 48. Rg8
{[%clk 0:00:12.6]} 48... g6 {[%clk 0:00:12.6]} 49. Rg7 {[%clk 0:00:12.8]} 49...
Bc5 {[%clk 0:00:13.4]} 50. Rxh7 {[%clk 0:00:12.9]} 50... Bb4 {[%clk 0:00:14.8]}
51. Rg7 {[%clk 0:00:11.9]} 51... Re1+ {[%clk 0:00:15.3]} 52. Kf2 {[%clk
0:00:13]} 52... Ra1 {[%clk 0:00:13.7]} 53. Rxg6 {[%clk 0:00:10.5]} 53... Rxa4
{[%clk 0:00:14.5]} 54. Rxe6 {[%clk 0:00:11.5]} 54... Bc5+ {[%clk 0:00:15.1]} 55.
Ke2 {[%clk 0:00:11.7]} 55... f4 {[%clk 0:00:15.8]} 56. h4 {[%clk 0:00:12.2]}
56... Rb4 {[%clk 0:00:16.2]} 57. h5 {[%clk 0:00:12.8]} 57... Rb6 {[%clk
0:00:11.8]} 58. Be4+ {[%clk 0:00:11]} 58... Kc8 {[%clk 0:00:09.2]} 59. Rxb6
{[%clk 0:00:10.2]} 59... cxb6 {[%clk 0:00:11.1]} 60. h6 {[%clk 0:00:10.1]} 60...
Bd4 {[%clk 0:00:11.4]} 61. Kd3 {[%clk 0:00:10.4]} 61... Bh8 {[%clk 0:00:11.1]}
62. Kc4 {[%clk 0:00:10.4]} 62... Kc7 {[%clk 0:00:12]} 63. Kb5 {[%clk 0:00:09.2]}
63... Bc3 {[%clk 0:00:11.9]} 64. Bg6 {[%clk 0:00:09.3]} 64... Bh8 {[%clk
0:00:12.6]} 65. Kc4 {[%clk 0:00:09.6]} 65... Bf6 {[%clk 0:00:12.1]} 66. Kb5
{[%clk 0:00:09.9]} 66... Bh8 {[%clk 0:00:12.4]} 67. c4 {[%clk 0:00:10.8]} 67...
Bd4 {[%clk 0:00:11]} 68. Be4 {[%clk 0:00:11]} 68... Bh8 {[%clk 0:00:11.4]} 69.
c5 {[%clk 0:00:11]} 69... bxc5 {[%clk 0:00:10.8]} 70. Kxc5 {[%clk 0:00:11.8]}
70... Bc3 {[%clk 0:00:09.1]} 71. h7 {[%clk 0:00:11.7]} 71... Kd7 {[%clk
0:00:07]} 72. Kc4 {[%clk 0:00:11]} 72... Bh8 {[%clk 0:00:05.8]} 73. Kb5 {[%clk
0:00:10.2]} 73... Ke6 {[%clk 0:00:06.8]} 74. Kxa5 {[%clk 0:00:10]} 74... Kf6
{[%clk 0:00:08.1]} 75. Kb5 {[%clk 0:00:10.8]} 75... Kg5 {[%clk 0:00:05.4]} 76.
Kc4 {[%clk 0:00:10.6]} 76... Kh6 {[%clk 0:00:05.1]} 77. Kd5 {[%clk 0:00:10.6]}
77... Bc3 {[%clk 0:00:04.6]} 78. Ke6 {[%clk 0:00:10]} 78... Kg7 {[%clk
0:00:05.4]} 79. Kf5 {[%clk 0:00:08.3]} 79... Bd2 {[%clk 0:00:05.9]} 80. Kg4
{[%clk 0:00:07.6]} 80... Be3 {[%clk 0:00:05.1]} 81. Kh5 {[%clk 0:00:06.1]} 81...
Bf2 {[%clk 0:00:04.5]} 82. Kg5 {[%clk 0:00:06.3]} 82... Bg3 {[%clk 0:00:05.6]}
83. Kg4 {[%clk 0:00:06.6]} 83... Kh8 {[%clk 0:00:05.8]} 84. Kg5 {[%clk
0:00:06.6]} 84... Kg7 {[%clk 0:00:06.4]} 85. Bg6 {[%clk 0:00:07.4]} 85... Kh8
{[%clk 0:00:07.1]} 86. Kf6 {[%clk 0:00:08]} 86... Bh4+ {[%clk 0:00:08]} 87. Kf7
{[%clk 0:00:08.9]} 87... Bg3 {[%clk 0:00:09.3]} 88. Bf5 {[%clk 0:00:09.7]} 88...
Bh4 {[%clk 0:00:09.3]} 89. Bh3 {[%clk 0:00:09.9]} 89... Bg3 {[%clk 0:00:09.9]}
90. Kg6 {[%clk 0:00:10.4]} 90... Bh2 {[%clk 0:00:08.2]} 91. Bg4 {[%clk 0:00:11]}
91... Bg3 {[%clk 0:00:08.6]} 92. Bh5 {[%clk 0:00:11.9]} 92... Bh2 {[%clk
0:00:08.6]} 93. Kh6 {[%clk 0:00:13]} 93... Bg3 {[%clk 0:00:08.8]} 94. Bg4 {[%clk
0:00:13.5]} 94... Bh2 {[%clk 0:00:09.6]} 95. Kg5 {[%clk 0:00:13.5]} 95... Kxh7
{[%clk 0:00:10.6]} 96. Kf6 {[%clk 0:00:13.7]} 96... Bg3 {[%clk 0:00:10.9]} 97.
Kg5 {[%clk 0:00:12.8]} 97... Kg7 {[%clk 0:00:11.5]} 98. Bh5 {[%clk 0:00:13.7]}
98... Kh7 {[%clk 0:00:11.6]} 99. Bg6+ {[%clk 0:00:14.5]} 99... Kg7 {[%clk
0:00:12.7]} 100. Bf5 {[%clk 0:00:15]} 100... Kf7 {[%clk 0:00:12.3]} 101. Kg4
{[%clk 0:00:15.8]} 101... Kf6 {[%clk 0:00:12.4]} 102. Bd3 {[%clk 0:00:16.5]}
102... Ke5 {[%clk 0:00:13.2]} 103. Be4 {[%clk 0:00:15]} 103... Kd4 {[%clk
0:00:13.9]} 104. Kh3 {[%clk 0:00:12.3]} 104... Ke3 {[%clk 0:00:14.8]} 105. Bd5
{[%clk 0:00:12.9]} 105... Kf2 {[%clk 0:00:15.3]} 106. Bc4 {[%clk 0:00:12.7]}
106... Kg1 {[%clk 0:00:16.2]} 107. Be2 {[%clk 0:00:13]} 107... Kf2 {[%clk
0:00:16.1]} 108. Bd1 {[%clk 0:00:13.5]} 108... Ke1 {[%clk 0:00:16.8]} 109. Bb3
{[%clk 0:00:13.8]} 109... Kf2 {[%clk 0:00:17.9]} 110. Bg8 {[%clk 0:00:14.3]}
110... Kg1 {[%clk 0:00:18.8]} 111. Bh7 {[%clk 0:00:13.7]} 111... Kf2 {[%clk
0:00:19.8]} 112. Bf5 {[%clk 0:00:14]} 112... Kg1 {[%clk 0:00:20.1]} 113. Bg6
{[%clk 0:00:13.2]} 113... Kf2 {[%clk 0:00:21.1]} 1/2-1/2

[Event "*** Titled Tuesday 3|2 Blitz"]
[Site "Chess.com"]
[Date "2017.03.07"]
[Round "4"]
[White "macko06"]
[Black "GulamaliRises"]
[Result "1-0"]
[WhiteElo "2335"]
[BlackElo "2499"]
[TimeControl "180+2"]
[EndTime "13:49:19 PST"]
[Termination "macko06 won by resignation"]

1. e4 {[%clk 0:03:02]} 1... e6 {[%clk 0:02:59]} 2. d4 {[%clk 0:03:02.9]} 2... d5
{[%clk 0:02:57.9]} 3. Nc3 {[%clk 0:03:04.5]} 3... Bb4 {[%clk 0:02:57.7]} 4. e5
{[%clk 0:03:05.5]} 4... c5 {[%clk 0:02:56.5]} 5. a3 {[%clk 0:03:07]} 5... Bxc3+
{[%clk 0:02:57]} 6. bxc3 {[%clk 0:03:08.9]} 6... Ne7 {[%clk 0:02:58.5]} 7. Nf3
{[%clk 0:03:10]} 7... Qc7 {[%clk 0:02:51.7]} 8. Bd2 {[%clk 0:03:08.5]} 8... b6
{[%clk 0:02:52]} 9. Bb5+ {[%clk 0:03:08.7]} 9... Nd7 {[%clk 0:02:51.6]} 10. O-O
{[%clk 0:03:01.5]} 10... c4 {[%clk 0:02:51.8]} 11. Bg5 {[%clk 0:02:53]} 11...
Ng6 {[%clk 0:02:49]} 12. h4 {[%clk 0:02:41.1]} 12... h6 {[%clk 0:02:47.5]} 13.
h5 {[%clk 0:02:40.6]} 13... Nf8 {[%clk 0:02:40.7]} 14. Bc1 {[%clk 0:02:38.8]}
14... a6 {[%clk 0:02:37]} 15. Bxd7+ {[%clk 0:02:39.4]} 15... Nxd7 {[%clk
0:02:38.9]} 16. a4 {[%clk 0:02:39.5]} 16... O-O {[%clk 0:02:39.7]} 17. Ba3
{[%clk 0:02:40]} 17... Re8 {[%clk 0:02:40.9]} 18. Bd6 {[%clk 0:02:41]} 18... Qc6
{[%clk 0:02:42.3]} 19. Nh4 {[%clk 0:02:40]} 19... f5 {[%clk 0:02:32.2]} 20. g4
{[%clk 0:02:34.4]} 20... f4 {[%clk 0:02:26.4]} 21. Ng6 {[%clk 0:02:34.8]} 1-0

[Event "*** Titled Tuesday 3|2 Blitz"]
[Site "Chess.com"]
[Date "2017.03.07"]
[Round "4"]
[White "David_Klein"]
[Black "ChadaevNikolay"]
[Result "1-0"]
[WhiteElo "2442"]
[BlackElo "2612"]
[TimeControl "180+2"]
[EndTime "13:49:42 PST"]
[Termination "David_Klein won by resignation"]

1. e4 {[%clk 0:03:02]} 1... c5 {[%clk 0:02:59.8]} 2. Nf3 {[%clk 0:03:02.7]} 2...
e6 {[%clk 0:03:00.9]} 3. g3 {[%clk 0:03:03.8]} 3... Nc6 {[%clk 0:02:54.5]} 4.
Bg2 {[%clk 0:03:04.7]} 4... Nf6 {[%clk 0:02:55]} 5. Qe2 {[%clk 0:03:05.3]} 5...
d5 {[%clk 0:02:37.3]} 6. exd5 {[%clk 0:03:05.6]} 6... Nxd5 {[%clk 0:02:37.9]} 7.
O-O {[%clk 0:03:07.2]} 7... Be7 {[%clk 0:02:31.1]} 8. Rd1 {[%clk 0:03:07.9]}
8... Bf6 {[%clk 0:02:32.2]} 9. Nc3 {[%clk 0:03:08.5]} 9... O-O {[%clk 0:02:27]}
10. Ne4 {[%clk 0:03:07.9]} 10... b6 {[%clk 0:01:42.5]} 11. Nxf6+ {[%clk
0:02:59.3]} 11... Qxf6 {[%clk 0:01:42.6]} 12. c4 {[%clk 0:02:48.6]} 12... Nde7
{[%clk 0:01:40.3]} 13. d4 {[%clk 0:02:47.8]} 13... cxd4 {[%clk 0:01:36.7]} 14.
Bg5 {[%clk 0:02:48.4]} 14... Qg6 {[%clk 0:01:37.5]} 15. Bxe7 {[%clk 0:02:45.6]}
15... Nxe7 {[%clk 0:01:38.4]} 16. Ne5 {[%clk 0:02:46.8]} 16... d3 {[%clk
0:01:35.4]} 17. Rxd3 {[%clk 0:02:43.9]} 1-0

[Event "*** Titled Tuesday 3|2 Blitz"]
[Site "Chess.com"]
[Date "2017.03.07"]
[Round "4"]
[White "Dlugy"]
[Black "Grebeniuk-S"]
[Result "1-0"]
[WhiteElo "2660"]
[BlackElo "2423"]
[TimeControl "180+2"]
[EndTime "13:51:03 PST"]
[Termination "Dlugy won by resignation"]

1. d4 {[%clk 0:03:02]} 1... Nf6 {[%clk 0:02:59.6]} 2. Bf4 {[%clk 0:03:02.7]}
2... d5 {[%clk 0:02:54.8]} 3. e3 {[%clk 0:03:03.4]} 3... e6 {[%clk 0:02:56.2]}
4. Nd2 {[%clk 0:03:03.9]} 4... Bd6 {[%clk 0:02:57.6]} 5. Bg3 {[%clk 0:03:05]}
5... O-O {[%clk 0:02:58.5]} 6. Bd3 {[%clk 0:03:04.8]} 6... c5 {[%clk 0:02:59.5]}
7. c3 {[%clk 0:03:05.9]} 7... b6 {[%clk 0:03:00.3]} 8. Ngf3 {[%clk 0:03:05.2]}
8... Ba6 {[%clk 0:02:54.3]} 9. Bxa6 {[%clk 0:03:05.7]} 9... Nxa6 {[%clk
0:02:55.3]} 10. Qe2 {[%clk 0:03:07]} 10... Nb8 {[%clk 0:02:51.5]} 11. e4 {[%clk
0:02:58.7]} 11... Bxg3 {[%clk 0:02:45.2]} 12. hxg3 {[%clk 0:02:59.7]} 12... dxe4
{[%clk 0:02:41.3]} 13. Nxe4 {[%clk 0:03:00.3]} 13... Nbd7 {[%clk 0:02:42.9]} 14.
dxc5 {[%clk 0:02:59.8]} 14... Nxc5 {[%clk 0:02:28.7]} 15. Nxc5 {[%clk 0:03:00]}
15... bxc5 {[%clk 0:02:29.2]} 16. O-O {[%clk 0:03:00.6]} 16... Qb6 {[%clk
0:02:26]} 17. Rfd1 {[%clk 0:02:57.5]} 17... Rab8 {[%clk 0:02:26.7]} 18. Rd2
{[%clk 0:02:56.4]} 18... h6 {[%clk 0:02:25.9]} 19. Ne5 {[%clk 0:02:56.3]} 19...
Rfd8 {[%clk 0:02:19.3]} 20. Rad1 {[%clk 0:02:56.7]} 20... Rd5 {[%clk 0:02:16.4]}
21. c4 {[%clk 0:02:48.4]} 21... Rxd2 {[%clk 0:02:13.5]} 22. Rxd2 {[%clk
0:02:48.9]} 22... Rd8 {[%clk 0:02:06.3]} 23. b3 {[%clk 0:02:48.6]} 23... Qa5
{[%clk 0:01:59.5]} 24. Rd3 {[%clk 0:02:39.4]} 24... h5 {[%clk 0:01:32.3]} 25.
Nc6 {[%clk 0:02:30.5]} 25... Rxd3 {[%clk 0:01:14.5]} 26. Nxa5 {[%clk 0:02:29.8]}
26... Rd6 {[%clk 0:01:13.2]} 27. f3 {[%clk 0:02:27.4]} 1-0

[Event "*** Titled Tuesday 3|2 Blitz"]
[Site "Chess.com"]
[Date "2017.03.07"]
[Round "4"]
[White "Marreuh"]
[Black "MattyDPerrine"]
[Result "0-1"]
[WhiteElo "2080"]
[BlackElo "2203"]
[TimeControl "180+2"]
[EndTime "13:51:08 PST"]
[Termination "MattyDPerrine won by checkmate"]

1. e4 {[%clk 0:03:02]} 1... c5 {[%clk 0:02:59.1]} 2. c3 {[%clk 0:03:03]} 2... g6
{[%clk 0:02:52.2]} 3. d4 {[%clk 0:03:03.3]} 3... cxd4 {[%clk 0:02:54.1]} 4. cxd4
{[%clk 0:03:04.8]} 4... d5 {[%clk 0:02:55.5]} 5. e5 {[%clk 0:03:06.4]} 5... Nc6
{[%clk 0:02:55.6]} 6. Nc3 {[%clk 0:03:07.3]} 6... Bg7 {[%clk 0:02:53.5]} 7. Bb5
{[%clk 0:03:08.7]} 7... e6 {[%clk 0:02:39.7]} 8. Nf3 {[%clk 0:03:01.2]} 8... Ne7
{[%clk 0:02:40.6]} 9. Bf4 {[%clk 0:02:51.7]} 9... h6 {[%clk 0:02:40.8]} 10. Qd2
{[%clk 0:02:52.6]} 10... g5 {[%clk 0:02:41.8]} 11. Be3 {[%clk 0:02:53.2]} 11...
Nf5 {[%clk 0:02:42.9]} 12. O-O-O {[%clk 0:02:14.1]} 12... Bd7 {[%clk 0:02:39.2]}
13. Kb1 {[%clk 0:02:13.8]} 13... Na5 {[%clk 0:02:33.1]} 14. Bd3 {[%clk
0:02:11.7]} 14... Rc8 {[%clk 0:02:23.5]} 15. Bxf5 {[%clk 0:02:07.6]} 15... exf5
{[%clk 0:02:25.4]} 16. Qe2 {[%clk 0:01:45.5]} 16... f4 {[%clk 0:02:24.6]} 17.
Bc1 {[%clk 0:01:45.6]} 17... O-O {[%clk 0:02:17.7]} 18. h4 {[%clk 0:01:38.8]}
18... b5 {[%clk 0:02:16.2]} 19. hxg5 {[%clk 0:01:36]} 19... hxg5 {[%clk
0:02:18.1]} 20. Nxb5 {[%clk 0:01:23.7]} 20... Bf5+ {[%clk 0:02:15.9]} 21. Ka1
{[%clk 0:01:23.7]} 21... a6 {[%clk 0:01:56.5]} 22. Nd6 {[%clk 0:01:24.6]} 22...
Nb3+ {[%clk 0:01:56]} 23. axb3 {[%clk 0:01:15.1]} 23... Qa5# {[%clk 0:01:57.9]}
0-1

[Event "*** Titled Tuesday 3|2 Blitz"]
[Site "Chess.com"]
[Date "2017.03.07"]
[Round "4"]
[White "GeorgMeier"]
[Black "GrigorGrigorov"]
[Result "1-0"]
[WhiteElo "2740"]
[BlackElo "2567"]
[TimeControl "180+2"]
[EndTime "13:51:32 PST"]
[Termination "GeorgMeier won by resignation"]

1. Nf3 {[%clk 0:03:02]} 1... Nf6 {[%clk 0:03:01.2]} 2. g3 {[%clk 0:03:03]} 2...
g6 {[%clk 0:03:02.4]} 3. Bg2 {[%clk 0:03:04.4]} 3... Bg7 {[%clk 0:03:03.5]} 4.
O-O {[%clk 0:03:05.6]} 4... O-O {[%clk 0:03:04.1]} 5. d4 {[%clk 0:03:07.1]} 5...
c5 {[%clk 0:03:01.5]} 6. dxc5 {[%clk 0:03:07.5]} 6... Na6 {[%clk 0:02:58.1]} 7.
Be3 {[%clk 0:03:08.7]} 7... Qa5 {[%clk 0:01:53.8]} 8. a3 {[%clk 0:02:51.4]} 8...
Ng4 {[%clk 0:01:42.9]} 9. Bd4 {[%clk 0:02:50.6]} 9... e5 {[%clk 0:01:43.5]} 10.
b4 {[%clk 0:02:50.3]} 10... Qc7 {[%clk 0:01:34.2]} 11. Bb2 {[%clk 0:02:45.4]}
11... Rb8 {[%clk 0:01:29.3]} 12. h3 {[%clk 0:02:38.7]} 12... Nh6 {[%clk
0:01:29.5]} 13. Nc3 {[%clk 0:02:33.4]} 13... b6 {[%clk 0:01:27.3]} 14. Nd5
{[%clk 0:01:33.1]} 14... Qd8 {[%clk 0:01:28.1]} 15. cxb6 {[%clk 0:01:34.4]}
15... axb6 {[%clk 0:01:27.4]} 16. Bxe5 {[%clk 0:01:33.6]} 16... Bxe5 {[%clk
0:01:17.5]} 17. Nxe5 {[%clk 0:01:34.8]} 17... Bb7 {[%clk 0:01:19.2]} 18. Nxd7
{[%clk 0:01:24.3]} 18... Bxd5 {[%clk 0:01:19.2]} 19. Qxd5 {[%clk 0:01:25]} 19...
Rc8 {[%clk 0:01:17.3]} 20. Nxf8 {[%clk 0:01:24.3]} 1-0

[Event "*** Titled Tuesday 3|2 Blitz"]
[Site "Chess.com"]
[Date "2017.03.07"]
[Round "4"]
[White "EmeseBalogh"]
[Black "Saitama_Hero"]
[Result "0-1"]
[WhiteElo "1988"]
[BlackElo "2224"]
[TimeControl "180+2"]
[EndTime "13:51:40 PST"]
[Termination "Saitama_Hero won by resignation"]

1. e4 {[%clk 0:03:02]} 1... d6 {[%clk 0:03:02]} 2. d4 {[%clk 0:02:54.7]} 2...
Nf6 {[%clk 0:03:03.9]} 3. Bd3 {[%clk 0:02:54.7]} 3... c6 {[%clk 0:03:02.9]} 4.
c3 {[%clk 0:02:56.3]} 4... e5 {[%clk 0:02:59.3]} 5. Be3 {[%clk 0:02:56.5]} 5...
Be7 {[%clk 0:02:57.1]} 6. Nd2 {[%clk 0:02:55.9]} 6... Ng4 {[%clk 0:02:56.1]} 7.
Qe2 {[%clk 0:02:54.9]} 7... O-O {[%clk 0:02:37.7]} 8. Ngf3 {[%clk 0:02:52.8]}
8... Nd7 {[%clk 0:02:33.1]} 9. O-O {[%clk 0:02:53.1]} 9... Ndf6 {[%clk
0:02:30.8]} 10. Nb3 {[%clk 0:02:53]} 10... Nxe3 {[%clk 0:02:29.9]} 11. fxe3
{[%clk 0:02:52.7]} 11... Qc7 {[%clk 0:02:30.5]} 12. h3 {[%clk 0:02:38.1]} 12...
Re8 {[%clk 0:02:29.6]} 13. Nh4 {[%clk 0:02:37.3]} 13... Bf8 {[%clk 0:02:30.4]}
14. Rxf6 {[%clk 0:02:23]} 14... gxf6 {[%clk 0:02:30.5]} 15. Nf5 {[%clk
0:02:24.1]} 15... Bxf5 {[%clk 0:02:27.8]} 16. exf5 {[%clk 0:02:26]} 16... e4
{[%clk 0:02:28.5]} 17. Bc2 {[%clk 0:02:24.7]} 17... d5 {[%clk 0:02:29.3]} 18.
Qg4+ {[%clk 0:02:25.5]} 18... Kh8 {[%clk 0:02:29.3]} 19. Qh4 {[%clk 0:02:24]}
19... Be7 {[%clk 0:02:21.8]} 20. Rf1 {[%clk 0:02:24.5]} 20... Rg8 {[%clk
0:02:23]} 21. Rf4 {[%clk 0:02:23.9]} 21... Rg7 {[%clk 0:02:24.4]} 22. Bd1 {[%clk
0:02:23.8]} 22... Rag8 {[%clk 0:02:25.2]} 23. g4 {[%clk 0:02:19.5]} 23... Bd6
{[%clk 0:02:22.8]} 24. Rf1 {[%clk 0:02:16.4]} 24... Qd8 {[%clk 0:02:24.1]} 25.
Nd2 {[%clk 0:02:14.9]} 25... Bc7 {[%clk 0:02:23.3]} 26. Rf2 {[%clk 0:02:15.5]}
26... Qd6 {[%clk 0:02:24.3]} 27. Nf1 {[%clk 0:02:16]} 27... Rg5 {[%clk 0:02:24]}
28. b3 {[%clk 0:02:14.6]} 28... R8g7 {[%clk 0:02:25.2]} 29. c4 {[%clk
0:02:15.2]} 29... b6 {[%clk 0:02:22.6]} 30. Kg2 {[%clk 0:02:12.6]} 30... h5
{[%clk 0:02:22.5]} 31. Ng3 {[%clk 0:02:12.1]} 31... Rh7 {[%clk 0:02:19.3]} 32.
Nf1 {[%clk 0:01:08.5]} 32... hxg4 {[%clk 0:02:18]} 0-1

[Event "*** Titled Tuesday 3|2 Blitz"]
[Site "Chess.com"]
[Date "2017.03.07"]
[Round "4"]
[White "mwpchess"]
[Black "oggy1984"]
[Result "0-1"]
[WhiteElo "2396"]
[BlackElo "2359"]
[TimeControl "180+2"]
[EndTime "13:51:56 PST"]
[Termination "oggy1984 won by resignation"]

1. e4 {[%clk 0:03:02]} 1... e5 {[%clk 0:03:00.5]} 2. Nf3 {[%clk 0:03:01.5]} 2...
Nc6 {[%clk 0:03:00.6]} 3. d4 {[%clk 0:03:01]} 3... exd4 {[%clk 0:03:01.1]} 4.
Nxd4 {[%clk 0:03:01.4]} 4... Nf6 {[%clk 0:03:02.5]} 5. Nxc6 {[%clk 0:03:01.6]}
5... bxc6 {[%clk 0:03:01.1]} 6. e5 {[%clk 0:03:02]} 6... Qe7 {[%clk 0:03:01.9]}
7. Qe2 {[%clk 0:03:02.1]} 7... Nd5 {[%clk 0:03:02.1]} 8. c4 {[%clk 0:03:02.3]}
8... Ba6 {[%clk 0:02:53.8]} 9. Nd2 {[%clk 0:03:02.4]} 9... Nf4 {[%clk
0:02:48.8]} 10. Qe4 {[%clk 0:02:46]} 10... Ne6 {[%clk 0:02:46.5]} 11. Be2 {[%clk
0:02:26.8]} 11... g6 {[%clk 0:02:43.8]} 12. O-O {[%clk 0:02:26.4]} 12... Bg7
{[%clk 0:02:44.7]} 13. Nf3 {[%clk 0:02:24]} 13... O-O {[%clk 0:02:41.5]} 14. b3
{[%clk 0:02:07.4]} 14... f5 {[%clk 0:02:38.5]} 15. exf6 {[%clk 0:02:03.9]} 15...
Qxf6 {[%clk 0:02:29.6]} 16. Rb1 {[%clk 0:01:45.7]} 16... Rae8 {[%clk 0:02:08.6]}
17. Bb2 {[%clk 0:01:33.5]} 17... Nf4 {[%clk 0:02:04.7]} 18. Bxf6 {[%clk
0:00:39.8]} 18... Rxe4 {[%clk 0:02:01.8]} 19. Bxg7 {[%clk 0:00:40.2]} 19...
Nxe2+ {[%clk 0:02:01]} 20. Kh1 {[%clk 0:00:40.6]} 20... Kxg7 {[%clk 0:02:02.9]}
21. Rfd1 {[%clk 0:00:38.4]} 21... d6 {[%clk 0:02:01]} 22. h3 {[%clk 0:00:37.5]}
22... Nc3 {[%clk 0:01:50.9]} 0-1

[Event "*** Titled Tuesday 3|2 Blitz"]
[Site "Chess.com"]
[Date "2017.03.07"]
[Round "4"]
[White "igorkovalenko"]
[Black "SavelijTartakover"]
[Result "1-0"]
[WhiteElo "2693"]
[BlackElo "2577"]
[TimeControl "180+2"]
[EndTime "13:52:26 PST"]
[Termination "igorkovalenko won by resignation"]

1. c4 {[%clk 0:03:02]} 1... Nf6 {[%clk 0:02:58.7]} 2. Nc3 {[%clk 0:03:03]} 2...
g6 {[%clk 0:02:59.5]} 3. e4 {[%clk 0:03:03.8]} 3... d6 {[%clk 0:03:00.4]} 4. d4
{[%clk 0:03:05.5]} 4... Bg7 {[%clk 0:03:01.9]} 5. Nf3 {[%clk 0:03:07.1]} 5...
O-O {[%clk 0:03:03.4]} 6. h3 {[%clk 0:03:07.6]} 6... Na6 {[%clk 0:02:57.8]} 7.
Bg5 {[%clk 0:03:07.4]} 7... h6 {[%clk 0:02:55.5]} 8. Be3 {[%clk 0:03:08.3]} 8...
e5 {[%clk 0:02:56.5]} 9. d5 {[%clk 0:03:09.5]} 9... Nd7 {[%clk 0:02:56.8]} 10.
Qd2 {[%clk 0:03:10.1]} 10... Kh7 {[%clk 0:02:55.9]} 11. g4 {[%clk 0:03:11.2]}
11... f5 {[%clk 0:02:52.2]} 12. gxf5 {[%clk 0:03:12.1]} 12... gxf5 {[%clk
0:02:53.2]} 13. exf5 {[%clk 0:03:13.5]} 13... Ndc5 {[%clk 0:02:54.3]} 14. Rg1
{[%clk 0:03:10.6]} 14... Rxf5 {[%clk 0:02:46.4]} 15. Nh2 {[%clk 0:03:02.1]}
15... e4 {[%clk 0:02:22.5]} 16. O-O-O {[%clk 0:03:00.3]} 16... Nb4 {[%clk
0:02:18.7]} 17. Rxg7+ {[%clk 0:02:58.6]} 17... Kxg7 {[%clk 0:02:18]} 18. Bxh6+
{[%clk 0:03:00.1]} 18... Kh7 {[%clk 0:02:14.4]} 19. Be3 {[%clk 0:02:57.5]} 19...
Nbd3+ {[%clk 0:02:06.6]} 20. Kb1 {[%clk 0:02:56.8]} 20... Qh4 {[%clk 0:02:00.5]}
21. Ng4 {[%clk 0:02:57.5]} 21... Bd7 {[%clk 0:01:55.1]} 22. Nxe4 {[%clk
0:02:47.4]} 22... Nxe4 {[%clk 0:01:38.3]} 23. Qxd3 {[%clk 0:02:48.5]} 23... Nf6
{[%clk 0:01:31.9]} 24. Be2 {[%clk 0:02:36.6]} 24... Rf8 {[%clk 0:01:21.2]} 25.
a3 {[%clk 0:02:30.4]} 25... b5 {[%clk 0:00:54.3]} 26. Nxf6+ {[%clk 0:02:15.6]}
26... Rxf6 {[%clk 0:00:45.8]} 27. Bg4 {[%clk 0:02:16.4]} 27... Kg8 {[%clk
0:00:39.5]} 28. cxb5 {[%clk 0:02:14.7]} 28... Qh7 {[%clk 0:00:20.9]} 29. Ka1
{[%clk 0:02:12.5]} 29... Re5 {[%clk 0:00:18.2]} 30. Qxh7+ {[%clk 0:02:13.3]} 1-0